[Event "CZE-ch U14 Open 2023"]
[Site "Teplice"]
[Date "2023.03.14"]
[Round "5.12"]
[White "Macosek, Alex"]
[Black "Striz, Tadeas"]
[Result "1-0"]
[ECO "A00"]
[WhiteElo "1466"]
[BlackElo "1503"]
[Annotator "NA RC COMBH"]
[PlyCount "93"]
[EventDate "2023.03.09"]
[EventType "swiss"]
[EventCountry "CZE"]
[SourceTitle "playchess.com"]
[Source "ChessBase"]
[SourceQuality "1"]
[TimeControl "40/5400+30:1800+30"]

1. g3 {[%emt 0:00:56]} Nf6 {[%emt 0:00:07]} 2. Bg2 {[%emt 0:00:18]} g6 {[%emt 0:01:56]} 3. d3 {[%emt 0:01:06]} d5 {[%emt 0:00:21]} 4. Nc3 {[%emt 0:00:44]} c5 {[%emt 0:01:35]} 5. e4 {[%emt 0:00:49]} d4 {[%emt 0:03:08]} 6. Nce2 {[%emt 0:00:16]} Nc6 {[%emt 0:01:40]} 7. f4 {[%emt 0:00:14]} Bg7 {[%emt 0:01:44]} 8. Nf3 {[%emt 0:01:00]} O-O {[%emt 0:02:20]} 9. h3 {[%emt 0:01:07]} Nd7 {[%emt 0:06:02]} 10. g4 {[%emt 0:00:42]} e6 {[%emt 0:05:35]} 11. Ng3 {[%emt 0:02:43]} b5 {[%emt 0:01:33]} 12. h4 {[%emt 0:05:51]} f6 {[%emt 0:16:19]} 13. h5 {[%emt 0:05:06]} Kf7 {[%emt 0:00:12]} 14. e5 {[%emt 0:00:25]} Bb7 {[%emt 0:02:54]} 15. Ne4 {[%emt 0:02:59]} Qc7 {[%emt 0:07:18]} 16. Nd6+ {[%emt 0:02:43]} Ke7 {[%emt 0:00:02]} 17. hxg6 {[%emt 0:01:12]} hxg6 {[%emt 0:03:39]} 18. Rh7 {[%emt 0:00:57]} Rg8 {[%emt 0:01:10]} 19. Qe2 {[%emt 0:05:43]} Nf8 {[%emt 0:10:33]} 20. f5 {[%emt 0:28:33]} fxe5 {[%emt 0:16:26]} 21. Rxg7+ {[%emt 0:00:38]} Rxg7 {[%emt 0:00:09]} 22. Nxb7 {[%emt 0:00:06]} Qxb7 {[%emt 0:00:51]} 23. Nxe5 {[%emt 0:00:09]} Rc8 {[%emt 0:01:34]} 24. Qf3 {[%emt 0:00:44]} gxf5 {[%emt 0:08:34]} 25. Nxc6+ {[%emt 0:01:01]} Rxc6 {[%emt 0:00:51]} 26. Qxc6 {[%emt 0:00:10]} Qxc6 {[%emt 0:00:02]} 27. Bxc6 {[%emt 0:00:09]} Rxg4 {[%emt 0:00:01]} 28. Kf2 {[%emt 0:00:43]} e5 {[%emt 0:01:49]} 29. Bf3 {[%emt 0:00:33]} Rg7 {[%emt 0:01:46]} 30. Bh6 {[%emt 0:00:18]} Rh7 {[%emt 0:00:55]} 31. Bxf8+ {[%emt 0:00:06]} Kxf8 {[%emt 0:00:04]} 32. Rh1 {[%emt 0:00:15]} Re7 {[%emt 0:01:03]} 33. Rh5 {[%emt 0:00:19]} f4 {[%emt 0:00:20]} 34. Be4 {[%emt 0:00:22]} Re6 {[%emt 0:01:22]} 35. Rh8+ {[%emt 0:00:15]} Kg7 {[%emt 0:00:01]} 36. Rh7+ {[%emt 0:00:13]} Kf8 {[%emt 0:00:41]} 37. Rxa7 {[%emt 0:00:35]} Rh6 {[%emt 0:00:06]} 38. Rh7 {[%emt 0:00:09]} Ra6 {[%emt 0:00:01]} 39. Rb7 {[%emt 0:01:23]} b4 {[%emt 0:02:01]} 40. Bd5 {[%emt 0:00:34]} Rd6 {[%emt 0:01:13]} 41. Be4 {[%emt 0:30:37]} Ra6 {[%emt 0:30:01]} 42. Rb8+ {[%emt 0:00:12]} Ke7 {[%emt 0:00:35]} 43. Ra8 {[%emt 0:00:12]} Rh6 {[%emt 0:00:19]} 44. Kg2 {[%emt 0:00:37]} Rh5 {[%emt 0:00:56]} 45. Rc8 {[%emt 0:00:45]} Rg5+ {[%emt 0:02:15]} 46. Kf2 {[%emt 0:00:08]} Rh5 {[%emt 0:00:11]} 47. Rxc5 {[%emt 0:00:28]} 1-0

[Event "CZE-ch U14 Open 2023"]
[Site "Teplice"]
[Date "2023.03.15"]
[Round "6.1"]
[White "Zelba, Lukas"]
[Black "Juhanak, Daniel"]
[Result "0-1"]
[ECO "C07"]
[WhiteElo "1912"]
[BlackElo "1952"]
[Annotator "TA"]
[PlyCount "50"]
[EventDate "2023.03.09"]
[EventType "swiss"]
[EventCountry "CZE"]
[SourceTitle "playchess.com"]
[Source "ChessBase"]
[SourceQuality "1"]
[TimeControl "40/5400+30:1800+30"]

{[%evp 10,50,15,18,14,17,15,21,18,18,25,10,10,12,26,30,31,29,42,50,91,40,45,47,113,0,0,0,0,0,0,0,0,-12,-10,-37,-27,-283,-294,-373,-365,-344,-245]} 1. e4 {[%emt 0:00:02]} e6 {[%emt 0:00:53]} 2. d4 {[%emt 0:00:04]} d5 {[%emt 0:00:04]} 3. Nd2 {[%emt 0:00:19]} c5 {[%emt 0:00:27]} 4. exd5 {[%emt 0:00:07]} Qxd5 {[%emt 0:00:02]} 5. Ngf3 {[%emt 0:00:19]} cxd4 {[%emt 0:00:24]} 6. Bc4 {[%emt 0:00:04]} Qd7 {[%emt 0:00:52] C07: French Tarrasch: 3...c5, 4 Ngf3 and 4 exd5 Qxd5.} 7. O-O {[%emt 0:02:51]} Nc6 {[%emt 0:00:12]} 8. Nb3 {[%emt 0:00:08]} Nf6 {[%emt 0:00:34] The position is equal.} 9. Nbxd4 {[%emt 0:03:12]} Nxd4 {[%emt 0:00:19]} 10. Nxd4 {[%emt 0:00:25] [#] Threatens to win with Bb5.} a6 {[%emt 0:00:30] Prevents Bb5.} 11. Re1 {[%emt 0:13:16]} b5 {[%emt 0:21:29]} 12. Bb3 {[%emt 0:02:20]} Be7 {[%emt 0:16:44]} 13. Bg5 {[%emt 0:04:22] [#]} h6 $146 {[%emt 0:07:53]} ({Predecessor:} 13... Bb7 14. Qd3 Rd8 15. Rad1 Nd5 16. Bxe7 Qxe7 17. Nf5 Qg5 18. h4 Qf6 19. c4 O-O 20. cxd5 exf5 {0-1 Guseinov,G (2615)-Andersen,M (2470) EU-Cup 30th Bilbao 2014 (3.5)}) 14. Bh4 {[%emt 0:02:30]} O-O {[%emt 0:08:37]} 15. c3 {[%emt 0:13:23]} (15. Rxe6 $16 {[%cal Oc2c3]} Rd8 16. Qf3) 15... Rd8 $14 {[%emt 0:09:38]} 16. Qe2 {[%emt 0:05:01]} Bb7 {[%emt 0:06:33] [#]} (16... Qc7 $14) 17. Rad1 {[%emt 0:01:51]} (17. Nxe6 $1 $16 Qc6 18. Qf1 (18. Nf4 Bc5 $16)) 17... Nd5 $11 {[%emt 0:00:53]} 18. Bxe7 {[%emt 0:06:05]} Qxe7 {[%emt 0:00:40]} 19. Qe5 {[%emt 0:03:01]} Qd6 {[%emt 0:05:06]} 20. Qxd6 {[%emt 0:14:31]} Rxd6 {[%emt 0:00:01]} 21. f3 {[%emt 0:00:38]} Rad8 {[%emt 0:00:39]} 22. a4 {[%emt 0:03:01]} b4 {[%emt 0:02:15]} 23. c4 $2 {[%emt 0:04:59][%mdl 8192]} (23. Ne2 $11 {and White stays safe.}) 23... Nf4 $19 {[%emt 0:01:17]} 24. Nb5 {[%emt 0:11:19]} axb5 {[%emt 0:05:12]} 25. cxb5 {[%emt 0:00:19]} Nd3 {[%emt 0:03:34] Weighted Error Value: White=0.39/Black=0.09 (flawless)} 0-1

[Event "CZE-ch U14 Open 2023"]
[Site "Teplice"]
[Date "2023.03.15"]
[Round "6.2"]
[White "Martirosyan, David"]
[Black "Jasso, Matej"]
[Result "0-1"]
[ECO "D38"]
[WhiteElo "1975"]
[BlackElo "1934"]
[Annotator "TA"]
[PlyCount "72"]
[EventDate "2023.03.09"]
[EventType "swiss"]
[EventCountry "CZE"]
[SourceTitle "playchess.com"]
[Source "ChessBase"]
[SourceQuality "1"]
[TimeControl "40/5400+30:1800+30"]

{[%evp 17,72,41,47,50,73,48,66,66,62,19,130,114,274,-24,-31,-30,0,-19,0,-41,-55,-62,-74,-100,-106,-83,-90,-114,-83,-87,-62,-164,-112,-114,-115,-337,-333,-323,-297,-293,-290,-320,-320,-312,-301,-486,-469,-608,-579,-859,-843,-632,-565,-565,-550,-525,-485]} 1. d4 {[%emt 0:00:06]} d5 {[%emt 0:00:14]} 2. c4 {[%emt 0:00:13]} e6 {[%emt 0:00:06]} 3. Nc3 {[%emt 0:00:15]} Bb4 {[%emt 0:00:20]} 4. Nf3 {[%emt 0:00:24]} Nf6 {[%emt 0:00:07]} 5. Qb3 {[%emt 0:00:32]} Nc6 {[%emt 0:06:52]} 6. Bg5 {[%emt 0:00:30]} h6 {[%emt 0:01:30]} 7. Bxf6 {[%emt 0:02:14]} Qxf6 {[%emt 0:00:31]} 8. e3 {[%emt 0:02:32]} dxc4 {[%emt 0:01:01]} 9. Bxc4 {[%emt 0:01:12]} O-O {[%emt 0:00:21]} 10. O-O {[%emt 0:01:01] D38: Queen's Gambit Declined: Ragozin Defence (4 Nf3 Bb4).} Qe7 {[%emt 0:06:25] [#] ...Na5 is the strong threat.} 11. Qc2 {[%emt 0:02:11] [#]} Rd8 $146 {[%emt 0:01:32]} ({Predecessor:} 11... Ba5 12. Rac1 e5 13. Nd5 Qd6 14. b4 Nxb4 15. dxe5 Qxd5 16. Bxd5 Nxc2 17. Rxc2 c6 {1-0 Gostisa,L (2422)-Janzelj,T (2440) Ljubljana-chT 71st 2018 (4.1)}) 12. a3 {[%emt 0:01:22] White is slightly better.} Bd6 {[%emt 0:04:43]} 13. b4 {[%emt 0:13:00]} e5 {[%emt 0:16:48]} (13... a5 $11 {remains equal.}) 14. Nd5 $16 {[%emt 0:02:19]} Qe8 {[%emt 0:04:30] [#]} (14... Qf8 $16 {is a better defense.}) 15. dxe5 $2 {[%emt 0:01:21]} ({White must play} 15. Nf6+ $1 $18 gxf6 16. Qg6+ Kf8 17. Qxf6) 15... Nxe5 $11 {[%emt 0:01:55]} 16. Nxe5 {[%emt 0:00:26]} Bxe5 {[%emt 0:03:03]} 17. Rae1 {[%emt 0:01:09]} Be6 {[%emt 0:09:22]} (17... c6 {looks sharper.} 18. Nf4 Bc7 19. Nh5 Qe5) 18. e4 {[%emt 0:01:23]} c6 {[%emt 0:02:12]} 19. Ne3 {[%emt 0:01:26]} a5 {[%emt 0:02:07] Black is more active.} 20. f4 {[%emt 0:06:58]} Bd4 {[%emt 0:01:48] White must now prevent ...Bxc4. This pair of bishops is nice.} 21. Kh1 {[%emt 0:00:18]} axb4 {[%emt 0:02:52]} 22. axb4 {[%emt 0:06:58]} Bxe3 {[%emt 0:01:49]} 23. Rxe3 {[%emt 0:01:14]} Rd4 {[%emt 0:00:22]} 24. Rc3 {[%emt 0:09:47]} (24. Be2 $15) 24... b5 {[%emt 0:00:59]} (24... Qd7 $19 {...Rd2 would be deadly.} 25. Qe2 Bxc4 26. Rxc4 b5 27. Rxd4 Qxd4) 25. Bxe6 $17 {[%emt 0:10:51]} Qxe6 {[%emt 0:00:13]} 26. Rb1 $2 {[%emt 0:11:15]} (26. Rxc6 $17 Qxe4 27. h3) 26... Ra2 $19 {[%emt 0:00:28]} (26... Rxe4 $2 {perishes.} 27. h3 $19) ({Stronger than} 26... Qxe4 27. Qxe4 Rxe4 28. h3 $17) 27. Qb3 {[%emt 0:04:22]} Qxb3 {[%emt 0:00:35]} (27... Rxe4 $2 {too greedy.} 28. Qxe6 Rxe6 29. h3 $19) 28. Rcxb3 {[%emt 0:00:04]} Rxe4 {[%emt 0:00:17][%mdl 4096] Endgame KRR-KRR} 29. g3 {[%emt 0:00:16]} Ree2 {[%emt 0:03:38] Dodges R1b2} 30. h4 {[%emt 0:00:06]} Kh7 {[%emt 0:00:31]} 31. Rc3 $2 {[%emt 0:01:03]} (31. f5 {might work better.}) 31... Kg6 {[%emt 0:00:28] Black is clearly winning.} 32. Rxc6+ {[%emt 0:01:52]} Kf5 {[%emt 0:00:21]} 33. Rc7 {[%emt 0:01:09]} Kg4 {[%emt 0:00:20] ( -> ...Rh2+)} 34. Rc3 {[%emt 0:04:24]} Rh2+ {[%emt 0:03:37]} 35. Kg1 {[%emt 0:00:10]} Rag2+ {[%emt 0:00:05]} 36. Kf1 {[%emt 0:00:10]} Rxg3 {[%emt 0:00:14] Never resign too early!   Weighted Error Value: White=0.61/Black=0.29 (precise)} 0-1

[Event "CZE-ch U14 Open 2023"]
[Site "Teplice"]
[Date "2023.03.15"]
[Round "6.3"]
[White "Topencik, Bruno"]
[Black "Ocelak, David"]
[Result "1/2-1/2"]
[ECO "B20"]
[WhiteElo "1844"]
[BlackElo "1608"]
[Annotator "NA RC COMBH"]
[PlyCount "93"]
[EventDate "2023.03.09"]
[EventType "swiss"]
[EventCountry "CZE"]
[SourceTitle "playchess.com"]
[Source "ChessBase"]
[SourceQuality "1"]
[TimeControl "40/5400+30:1800+30"]

1. e4 c5 2. Be2 Nc6 3. f4 e6 4. Nf3 d5 5. d3 Be7 6. O-O b6 7. e5 Nh6 8. c3 O-O 9. Kh1 a5 (9... d4 $15 {is more appropriate.}) 10. Be3 Ba6 11. Bf2 b5 12. Nbd2 Qc7 13. Rg1 ({White should try} 13. a3 $11) 13... Rfb8 ({Black should play} 13... f6 $15) 14. g4 Bc8 (14... b4 $11 {is more appropriate.}) 15. g5 (15. Rc1 $14) 15... Nf5 16. Nh4 c4 (16... Nxh4 $17 17. Bxh4 b4) 17. Nxf5 exf5 18. Qf1 ({White should try} 18. Bf3 $11) 18... Be6 19. Qh3 Nd8 20. Rg3 Bd7 21. Bf3 Ne6 22. Be3 cxd3 23. Bxd5 Bc6 24. Bxc6 Qxc6+ 25. Qg2 Qxg2+ ({Black should play} 25... Qc7 $17) 26. Kxg2 Rd8 (26... b4 $15 {is more appropriate.} 27. c4 Rd8) 27. Nf3 Bc5 28. Bd2 Rd7 29. Nd4 Nxd4 30. cxd4 Rxd4 31. Be3 Rd5 32. Bxc5 Rxc5 33. Rxd3 Rc2+ 34. Kg3 Rac8 35. Rad1 Kf8 36. R1d2 Rxd2 37. Rxd2 Rc5 38. Rd8+ Ke7 39. Ra8 a4 40. Ra7+ Kf8 41. Rb7 a3 42. bxa3 Rc3+ 43. Kf2 $11 Rxa3 44. Rxb5 Rxa2+ 45. Kg3 Ra3+ 46. Kf2 Ra2+ 47. Kg3 1/2-1/2

[Event "CZE-ch U14 Open 2023"]
[Site "Teplice"]
[Date "2023.03.15"]
[Round "6.4"]
[White "Zemek, Antonin"]
[Black "Zrubek, Dan"]
[Result "1-0"]
[ECO "E62"]
[WhiteElo "1739"]
[BlackElo "1752"]
[Annotator "NA RC COMBH"]
[PlyCount "87"]
[EventDate "2023.03.09"]
[EventType "swiss"]
[EventCountry "CZE"]
[SourceTitle "playchess.com"]
[Source "ChessBase"]
[SourceQuality "1"]
[TimeControl "40/5400+30:1800+30"]

1. Nf3 {[%emt 0:00:25]} g6 {[%emt 0:01:12]} 2. g3 {[%emt 0:01:19]} Bg7 {[%emt 0:01:10]} 3. Bg2 {[%emt 0:01:18]} Nf6 {[%emt 0:00:47]} 4. c4 {[%emt 0:02:09]} O-O {[%emt 0:00:51]} 5. Nc3 {[%emt 0:02:33]} d6 {[%emt 0:01:52]} 6. d4 {[%emt 0:06:05]} Nc6 {[%emt 0:06:06]} 7. O-O {[%emt 0:01:38]} e5 {[%emt 0:04:40]} 8. d5 {[%emt 0:01:11]} Ne7 {[%emt 0:00:52]} 9. e4 {[%emt 0:01:52]} a5 {[%emt 0:04:50]} 10. Ne1 {[%emt 0:02:12]} Nd7 {[%emt 0:03:24]} 11. Nd3 {[%emt 0:04:00]} f5 {[%emt 0:06:40]} 12. f3 {[%emt 0:04:19]} b6 {[%emt 0:06:37]} 13. b3 {[%emt 0:05:02]} Nf6 {[%emt 0:05:00]} 14. Be3 {[%emt 0:05:37]} Nh5 {[%emt 0:08:25]} 15. Qd2 {[%emt 0:06:08]} f4 {[%emt 0:09:23]} 16. Bf2 {[%emt 0:07:07]} g5 {[%emt 0:06:08]} 17. g4 {[%emt 0:05:09]} Nf6 {[%emt 0:00:30]} 18. h4 {[%emt 0:01:11]} h6 {[%emt 0:05:01]} 19. h5 {[%emt 0:02:21]} Ba6 {[%emt 0:00:39]} 20. Rfc1 {[%emt 0:03:44]} Qd7 {[%emt 0:00:53]} 21. Qd1 {[%emt 0:02:38]} Rfc8 {[%emt 0:04:25]} 22. Bf1 {[%emt 0:03:12]} Rab8 {[%emt 0:00:57]} 23. Nb2 {[%emt 0:02:05]} Qe8 {[%emt 0:03:13]} 24. a3 {[%emt 0:02:47]} Nd7 {[%emt 0:03:02]} 25. b4 {[%emt 0:01:55]} axb4 {[%emt 0:02:42]} 26. axb4 {[%emt 0:01:12]} Ra8 {[%emt 0:00:23]} 27. Nba4 {[%emt 0:01:38]} Bf8 {[%emt 0:01:28]} 28. Qb3 {[%emt 0:00:42]} Rcb8 {[%emt 0:01:35]} 29. Ra3 {[%emt 0:04:20]} Kh8 {[%emt 0:01:19]} 30. Qa2 {[%emt 0:01:07]} Nc8 {[%emt 0:03:42]} 31. Nxb6 {[%emt 0:01:25]} Ncxb6 {[%emt 0:03:23]} 32. Rxa6 {[%emt 0:00:07]} Qc8 {[%emt 0:00:38]} 33. Ra1 {[%emt 0:00:45]} c6 {[%emt 0:00:28]} 34. Kg2 {[%emt 0:02:59]} Qc7 {[%emt 0:01:30]} 35. Qb3 {[%emt 0:02:02]} Qb7 {[%emt 0:01:01]} 36. R6a2 {[%emt 0:02:03]} cxd5 {[%emt 0:00:36]} 37. exd5 {[%emt 0:00:50]} Rxa2 {[%emt 0:00:34]} 38. Rxa2 {[%emt 0:00:06]} Nf6 {[%emt 0:00:24]} 39. Qc2 {[%emt 0:01:15]} Rc8 {[%emt 0:01:24]} 40. Qg6 {[%emt 0:01:04]} Bg7 {[%emt 0:00:29]} 41. Nb5 {[%emt 0:30:32]} Ra8 {[%emt 0:32:15]} 42. Nxd6 {[%emt 0:00:27]} Qe7 {[%emt 0:00:30]} 43. Nf7+ {[%emt 0:00:45]} Kg8 {[%emt 0:00:06]} 44. Nxh6+ {[%emt 0:00:04]} 1-0

[Event "CZE-ch U14 Open 2023"]
[Site "Teplice"]
[Date "2023.03.15"]
[Round "6.5"]
[White "Babula, Matej"]
[Black "Hrbek, Jachym"]
[Result "1-0"]
[ECO "B84"]
[WhiteElo "1796"]
[BlackElo "1824"]
[Annotator "NA RC COMBH"]
[PlyCount "43"]
[EventDate "2023.03.09"]
[EventType "swiss"]
[EventCountry "CZE"]
[SourceTitle "playchess.com"]
[Source "ChessBase"]
[SourceQuality "1"]
[TimeControl "40/5400+30:1800+30"]

{[%evp 17,42,12,32767,52,32767,32767,32767,32767,99,32767,32767,40,32767,341,358,345,393,32767,382,396,32767,32767,907,895,29991,32767,29996]} 1. e4 {[%emt 0:00:03]} c5 {[%emt 0:00:11]} 2. Nf3 {[%emt 0:00:07]} d6 {[%emt 0:00:06]} 3. d4 {[%emt 0:00:06]} cxd4 {[%emt 0:00:06]} 4. Nxd4 {[%emt 0:00:04]} Nf6 {[%emt 0:00:07]} 5. Nc3 {[%emt 0:00:11]} a6 {[%emt 0:00:08]} 6. Be2 {[%emt 0:03:53]} e6 {[%emt 0:02:47]} 7. O-O {[%emt 0:01:03]} Be7 {[%emt 0:02:47]} 8. f4 {[%emt 0:05:07]} Qc7 {[%emt 0:05:57]} 9. Kh1 {[%emt 0:03:49]} b5 {[%emt 0:02:53]} 10. Bf3 {[%emt 0:06:27]} Bb7 {[%emt 0:03:45]} 11. e5 {[%emt 0:06:54]} dxe5 {[%emt 0:02:25]} 12. fxe5 {[%emt 0:01:15]} Nfd7 {[%emt 0:05:34]} 13. Bxb7 {[%emt 0:02:09]} Qxb7 {[%emt 0:00:12]} 14. Qg4 {[%emt 0:04:08]} (14. Qh5 $16 g6 15. Qe2) 14... g6 {[%emt 0:30:58]} 15. Bg5 {[%emt 0:18:36]} Nxe5 {[%emt 0:10:59]} 16. Qf4 {[%emt 0:00:20]} Nbd7 {[%emt 0:00:14]} 17. Bxe7 {[%emt 0:00:27]} Kxe7 {[%emt 0:00:14]} 18. Rae1 {[%emt 0:03:18]} ({Not} 18. Nf3 Nxf3 19. Qb4+ (19. Rxf3 f5 $11) 19... Kd8 $18) 18... Qc7 {[%emt 0:14:10]} 19. Nd5+ {[%emt 0:10:08]} exd5 {[%emt 0:00:12]} 20. Qxf7+ {[%emt 0:00:07]} Kd6 {[%emt 0:07:55]} 21. Rxe5 {[%emt 0:04:38]} Nb6 {[%emt 0:06:49]} 22. Re6+ {[%emt 0:00:33]} 1-0

[Event "CZE-ch U14 Open 2023"]
[Site "Teplice"]
[Date "2023.03.15"]
[Round "6.6"]
[White "Roubal, Matyas"]
[Black "Popov, Roman"]
[Result "1/2-1/2"]
[ECO "B10"]
[WhiteElo "1948"]
[BlackElo "2353"]
[Annotator "TA"]
[PlyCount "140"]
[EventDate "2023.03.09"]
[EventType "swiss"]
[EventCountry "CZE"]
[SourceTitle "playchess.com"]
[Source "ChessBase"]
[SourceQuality "1"]
[TimeControl "40/5400+30:1800+30"]

{[%evp 10,140,26,27,20,33,19,26,30,29,25,20,27,41,54,54,52,53,64,57,58,58,49,49,126,106,85,105,83,84,97,97,250,225,240,243,243,212,202,210,192,199,200,150,151,85,84,84,262,261,260,260,260,252,337,345,318,303,856,820,835,825,1296,1235,633,206,5443,5443,5443,5443,5443,5412,5443,5437,5418,4854,5443,5443,5425,5418,5418,5418,5373,5367,5341,5189,5118,4656,5097,5057,4854,4718,4837,4818,3526,2016,2016,2010,1875,1816,1560,1428,1151,0,1756,1579,1322,610,1625,603,603,603,603,379,339,277,277,277,277,277,577,512,504,504,483,444,576,0,0,0,0,0,0]} 1. e4 {[%emt 0:00:02]} c6 {[%emt 0:00:17]} 2. Nc3 {[%emt 0:00:12]} d5 {[%emt 0:00:14]} 3. Nf3 {[%emt 0:00:09]} dxe4 {[%emt 0:00:46]} 4. Nxe4 {[%emt 0:00:06]} Nf6 {[%emt 0:00:06]} 5. Qe2 {[%emt 0:00:26]} Nxe4 {[%emt 0:00:12]} 6. Qxe4 {[%emt 0:00:05]} Nd7 {[%emt 0:00:12] B11: Caro-Kann: Two Knights Variation.} 7. Bc4 {[%emt 0:00:04]} Nf6 {[%emt 0:00:11] [#]} 8. Ne5 $1 {[%emt 0:00:07][%csl Ge5][%cal Rc4f7]} e6 {[%emt 0:00:24] White has an edge.} 9. Qe2 {[%emt 0:00:05]} b5 {[%emt 0:03:17]} 10. Bd3 {[%emt 0:06:15]} ({Much weaker is} 10. Nxc6 Qc7 11. Bd3 (11. Bxb5 $2 a6 $17) 11... a6 $15) 10... Qc7 {[%emt 0:02:51]} 11. a4 $1 {[%emt 0:04:42] 11.a4 scores better than 11.b3.} b4 {[%emt 0:17:26]} 12. b3 {[%emt 0:06:20]} Nd5 {[%emt 0:09:26]} 13. g3 {[%emt 0:03:48] Prevents Nf4.} Bd6 {[%emt 0:05:57]} 14. Bb2 {[%emt 0:02:28] White is more active.} Nc3 {[%emt 0:09:04]} 15. dxc3 {[%emt 0:03:45]} Bxe5 {[%emt 0:00:19] [#]} 16. Qd2 $146 {[%emt 0:01:27]} ({Predecessor:} 16. Be4 O-O 17. Qc4 Rb8 18. O-O c5 19. Rfe1 Bf6 {½-½ Lauer,M (2399)-Fecker,N (2339) Bodensee-Cup 2021 (2.4)}) 16... Bf6 {[%emt 0:06:08]} (16... O-O $14) 17. f4 {[%emt 0:06:24]} Bb7 {[%emt 0:04:09]} 18. O-O-O {[%emt 0:01:59]} bxc3 {[%emt 0:06:56]} 19. Bxc3 {[%emt 0:00:07]} Bxc3 {[%emt 0:03:29]} 20. Qxc3 {[%emt 0:00:06]} O-O-O $2 {[%emt 0:01:37]} (20... O-O $16 {is a better defense.}) 21. Qxg7 $18 {[%emt 0:06:01]} c5 {[%emt 0:01:50]} 22. Rhe1 {[%emt 0:01:32]} h5 {[%emt 0:02:51][%cal Bh7h5,Bh5h4][%mdl 32]} 23. Qe5 {[%emt 0:02:32]} h4 {[%emt 0:02:59]} 24. f5 {[%emt 0:08:48]} Qxe5 {[%emt 0:02:06]} 25. Rxe5 {[%emt 0:00:08]} Rd5 {[%emt 0:01:15]} 26. Rxd5 {[%emt 0:00:19]} Bxd5 {[%emt 0:03:52][%mdl 4096] Endgame KRB-KRB} 27. Be2 {[%emt 0:06:27]} (27. g4 $142) 27... hxg3 $16 {[%emt 0:01:27]} 28. hxg3 {[%emt 0:00:03]} Be4 $2 {[%emt 0:03:53]} (28... Kc7 $16 {might work better.}) 29. fxe6 $18 {[%emt 0:00:15]} fxe6 {[%emt 0:00:22]} 30. Bg4 {[%emt 0:01:49]} Rh6 {[%emt 0:06:11]} 31. Re1 {[%emt 0:03:55]} Bf5 {[%emt 0:01:44]} 32. Bxf5 {[%emt 0:00:09]} exf5 {[%emt 0:00:12] KR-KR} 33. Re5 {[%emt 0:00:08][%csl LRc5,LRf5]} Rg6 $2 {[%emt 0:03:06]} (33... c4 34. Rc5+ (34. bxc4 Rg6 $18) (34. Rxf5 cxb3 35. cxb3 Rg6 $18) 34... Kd7 35. Rxc4 (35. bxc4 Rg6 $18) 35... Rh1+ 36. Kb2 Rg1) 34. Rxc5+ {[%emt 0:00:03]} Kb7 {[%emt 0:00:06]} 35. Rxf5 {[%emt 0:00:04]} Rxg3 {[%emt 0:00:06]} 36. Kb2 {[%emt 0:00:19]} Kc6 {[%emt 0:00:15]} 37. Rf4 $2 {[%emt 0:00:17]} (37. b4 Rg7 38. a5) 37... a6 $2 {[%emt 0:00:59]} (37... a5 38. Rf2 Kb7) 38. Rf5 {[%emt 0:00:54]} Kb6 {[%emt 0:00:47]} 39. a5+ {[%emt 0:00:52]} Kc6 {[%emt 0:00:19]} 40. c4 {[%emt 0:00:08]} Re3 {[%emt 0:00:48]} 41. Ka3 {[%emt 0:30:17]} Re8 {[%emt 0:31:14]} 42. Rf6+ {[%emt 0:00:07]} Kb7 {[%emt 0:00:51]} 43. b4 {[%emt 0:00:27]} Re3+ {[%emt 0:00:35]} 44. Ka4 {[%emt 0:00:15]} Re4 {[%emt 0:00:23]} 45. Kb3 {[%emt 0:00:37]} Re3+ {[%emt 0:00:26]} 46. Kc2 {[%emt 0:00:05]} Ra3 {[%emt 0:00:20]} 47. Kb2 {[%emt 0:00:58]} Re3 {[%emt 0:00:25]} 48. Rd6 {[%emt 0:00:50]} Rh3 {[%emt 0:00:52]} 49. Kc2 {[%emt 0:00:29]} Ra3 {[%emt 0:01:07]} 50. Rd3 {[%emt 0:00:04]} Ra4 {[%emt 0:00:33]} 51. Kc3 {[%emt 0:00:28]} Kc6 {[%emt 0:00:29]} 52. Rd1 {[%emt 0:01:22] [#] Threatening mate with Kb3.} Ra3+ {[%emt 0:00:20]} 53. Kb2 {[%emt 0:00:07]} Rh3 {[%emt 0:00:10]} 54. Rg1 {[%emt 0:00:22]} Rh2+ {[%emt 0:00:09]} 55. Kc3 {[%emt 0:00:20]} Rh3+ {[%emt 0:00:06]} 56. Kb2 {[%emt 0:00:25]} (56. Kc2 $142 Rh2+ 57. Kb3 Rh3+ 58. Ka4) 56... Rh2+ {[%emt 0:00:15]} 57. Kb3 {[%emt 0:00:52] Strongly threatening Rg6+.} Rh3+ {[%emt 0:00:11]} 58. Ka4 {[%emt 0:00:06]} Rh4 {[%emt 0:00:27]} 59. Rg6+ {[%emt 0:00:04]} (59. Rg7 $142 Rf4 60. Ra7 Rxc4 61. Rxa6+ Kb7 62. Rh6) 59... Kb7 {[%emt 0:00:27]} 60. Rb6+ {[%emt 0:00:30]} Ka7 {[%emt 0:00:25]} 61. c5 {[%emt 0:24:54]} Rh3 {[%emt 0:01:50]} 62. Rg6 {[%emt 0:00:57]} Rc3 {[%emt 0:01:06]} 63. Rg2 {[%emt 0:10:01]} Kb7 {[%emt 0:00:00]} 64. Rb2 {[%emt 0:00:00]} Kc6 $2 {[%emt 0:00:00]} (64... Rh3 65. Rf2 Rh6) 65. Rb3 {[%emt 0:00:00]} Rc1 {[%emt 0:00:00]} 66. Rd3 {[%emt 0:00:00]} Ra1+ {[%emt 0:00:00]} 67. Kb3 {[%emt 0:00:00] Hoping for Rd6+.} Kb5 {[%emt 0:00:00]} 68. Rd6 $2 {[%emt 0:00:00]} (68. Rd7 $18 {Black must now prevent Rb7+.} Rb1+ 69. Kc3 Rxb4 70. Rb7+ Kxa5 71. c6) 68... Rb1+ $11 {[%emt 0:00:00] The position is equal.} 69. Kc3 {[%emt 0:00:00] And now Rb6+ would win.} Rxb4 {[%emt 0:00:00]} 70. Rb6+ {[%emt 0:00:00]} Kxa5 {[%emt 0:00:00] Weighted Error Value: White=0.19 (very precise) /Black=0.21 (precise)} 1/2-1/2